[Event "GER-ch Youth U12M 2018"]
[Site "Willingen"]
[Date "2018.05.21"]
[Round "3"]
[White "Schwartz, Oliver"]
[Black "Rössel, Gino"]
[Result "*"]
[ECO "C14"]
[WhiteElo "1651"]
[BlackElo "1705"]
[Annotator "NA RC"]
[PlyCount "62"]
[EventDate "2018.05.19"]
[EventType "swiss"]
[EventCountry "GER"]
[SourceTitle "playchess.com"]
[Source "ChessBase"]
[SourceQuality "1"]
[TimeControl "40/4500+30:900+30"]

1. e4 {[%emt 0:00:00]} e6 {[%emt 0:00:18]} 2. d4 {[%emt 0:00:00]} d5 {[%emt 0:00:19]} 3. Nc3 {[%emt 0:00:06]} Nf6 {[%emt 0:01:27]} 4. Bg5 {[%emt 0:00:50]} Be7 {[%emt 0:01:03]} 5. e5 {[%emt 0:00:06]} Nfd7 {[%emt 0:00:28]} 6. Bxe7 {[%emt 0:00:04]} Qxe7 {[%emt 0:00:08]} 7. f4 {[%emt 0:00:02]} a6 {[%emt 0:00:47]} 8. Nf3 {[%emt 0:02:30]} b5 {[%emt 0:04:05]} 9. Qd2 {[%emt 0:02:05]} Bb7 10. Bd3 {[%emt 0:00:07]} c5 {[%emt 0:02:31]} 11. dxc5 {[%emt 0:00:30]} Qxc5 {[%emt 0:00:26]} 12. Qf2 {[%emt 0:02:07]} Qxf2+ {[%emt 0:00:26]} 13. Kxf2 {[%emt 0:00:03]} Nc6 {[%emt 0:00:47]} 14. Ne2 {[%emt 0:02:48]} Nc5 {[%emt 0:01:17]} 15. Ned4 {[%emt 0:03:13]} O-O {[%emt 0:05:06]} 16. Nxc6 {[%emt 0:18:40]} Bxc6 {[%emt 0:00:19]} 17. Nd4 {[%emt 0:00:04]} Bd7 {[%emt 0:00:14]} 18. g4 {[%emt 0:10:56]} f6 {[%emt 0:01:00]} 19. Ke3 {[%emt 0:01:27]} Na4 {[%emt 0:06:25]} 20. b3 {[%emt 0:06:04]} Nc5 {[%emt 0:00:23]} 21. Rhf1 {[%emt 0:03:28]} Rac8 {[%emt 0:06:09]} 22. Kd2 {[%emt 0:04:15]} Nb7 {[%emt 0:03:18]} 23. a4 {[%emt 0:08:05]} Nc5 {[%emt 0:00:55]} 24. axb5 {[%emt 0:01:47]} Nxd3 {[%emt 0:00:17]} 25. cxd3 {[%emt 0:00:33]} axb5 {[%emt 0:00:07]} 26. exf6 {[%emt 0:02:48]} gxf6 {[%emt 0:00:24]} 27. Ra7 {[%emt 0:01:15]} Rfd8 {[%emt 0:01:03]} 28. Re1 {[%emt 0:01:34]} Ra8 {[%emt 0:01:01]} 29. Rxa8 {[%emt 0:03:55]} Rxa8 {[%emt 0:00:12]} 30. Kc3 {[%emt 0:08:03]} Kf7 {[%emt 0:00:36]} 31. Kb2 {[%emt 0:00:08]} Ra2+ {[%emt 0:00:21] Re2 [%clk 0:02:39] Ra6 [%clk 0:47:45] h4 [%clk 0:00:50] h6 [%clk 0:47:45] g5 [%clk 0:00:50] hxg5 [%clk 0:47:45] hxg5 [%clk 0:01:17] fxg5 [%clk 0:48:39] fxg5 [%clk 0:01:53] Be8 [%clk 0:48:40]} *

[Event "GER-ch Youth U12M 2018"]
[Site "Willingen"]
[Date "2018.05.21"]
[Round "3"]
[White "Hoke, Adrian Neo"]
[Black "Gerdes, Jannes"]
[Result "*"]
[ECO "B22"]
[WhiteElo "1628"]
[BlackElo "1492"]
[Annotator "NA RC"]
[PlyCount "79"]
[EventDate "2018.05.19"]
[EventType "swiss"]
[EventCountry "GER"]
[SourceTitle "playchess.com"]
[Source "ChessBase"]
[SourceQuality "1"]
[TimeControl "40/4500+30:900+30"]

1. e4 {[%emt 0:00:00]} c5 {[%emt 0:00:15]} 2. c3 {[%emt 0:00:00]} Nf6 {[%emt 0:00:20]} 3. e5 {[%emt 0:00:00]} Nd5 {[%emt 0:00:20]} 4. d4 {[%emt 0:00:13]} cxd4 {[%emt 0:00:16]} 5. Nf3 {[%emt 0:00:17]} Nc6 {[%emt 0:00:14]} 6. cxd4 {[%emt 0:00:06]} d6 {[%emt 0:00:12]} 7. Bc4 {[%emt 0:00:17]} dxe5 {[%emt 0:00:22]} 8. dxe5 {[%emt 0:00:30]} Ndb4 {[%emt 0:00:18]} 9. a3 {[%emt 0:05:23]} Qxd1+ {[%emt 0:02:58]} 10. Kxd1 {[%emt 0:00:04]} Na6 {[%emt 0:00:35]} 11. Bxa6 {[%emt 0:00:31]} bxa6 {[%emt 0:00:13]} 12. Be3 {[%emt 0:08:37]} Bg4 {[%emt 0:00:26]} 13. Bf4 {[%emt 0:02:12]} g6 {[%emt 0:04:07]} 14. Nbd2 {[%emt 0:02:27]} Bg7 {[%emt 0:04:24]} 15. Re1 {[%emt 0:00:41]} O-O {[%emt 0:02:03]} 16. h3 {[%emt 0:02:49]} Bxf3+ {[%emt 0:04:06]} 17. Nxf3 {[%emt 0:00:14]} Rfd8+ {[%emt 0:01:07]} 18. Ke2 {[%emt 0:01:02]} Nd4+ {[%emt 0:07:41]} 19. Nxd4 {[%emt 0:00:21]} Rxd4 {[%emt 0:00:10]} 20. Bg3 {[%emt 0:01:21]} Rd5 {[%emt 0:08:06]} 21. Kf1 {[%emt 0:02:31]} Rad8 {[%emt 0:01:07]} 22. Rac1 {[%emt 0:02:56]} e6 {[%emt 0:04:19]} 23. Rc7 {[%emt 0:02:42]} R8d7 {[%emt 0:01:05]} 24. Rec1 {[%emt 0:04:53]} Rxc7 {[%emt 0:13:20]} 25. Rxc7 {[%emt 0:00:18]} Bxe5 {[%emt 0:00:25]} 26. Bxe5 {[%emt 0:00:07]} Rxe5 {[%emt 0:00:03]} 27. Rxa7 {[%emt 0:00:10]} a5 {[%emt 0:00:04]} 28. Rb7 {[%emt 0:07:51]} Kf8 {[%emt 0:01:23]} 29. b4 {[%emt 0:00:54]} axb4 {[%emt 0:00:05]} 30. axb4 {[%emt 0:00:05]} Rd5 {[%emt 0:00:22]} 31. Ke2 {[%emt 0:01:08]} Ke8 {[%emt 0:00:55]} 32. Ke3 {[%emt 0:01:37]} h5 {[%emt 0:01:49]} 33. b5 {[%emt 0:04:35]} Kf8 {[%emt 0:03:31]} 34. b6 {[%emt 0:02:30]} Ke8 {[%emt 0:04:08]} 35. Rc7 {[%emt 0:03:50]} Rd7 {[%emt 0:08:43]} 36. b7 {[%emt 0:00:32]} Rxc7 {[%emt 0:00:18]} 37. b8=Q+ {[%emt 0:00:04]} Kd7 {[%emt 0:00:09]} 38. Kd4 {[%emt 0:00:49]} Rc8 {[%emt 0:01:38]} 39. Qb5+ {[%emt 0:01:03]} Kd8 {[%emt 0:04:11]} 40. Ke5 {[%emt 0:01:13]} *

[Event "GER-ch Youth U12M 2018"]
[Site "Willingen"]
[Date "2018.05.21"]
[Round "3"]
[White "Gluma, Christian"]
[Black "Tovmasyan, Minas"]
[Result "0-1"]
[ECO "D51"]
[WhiteElo "1601"]
[BlackElo "1480"]
[Annotator "NA RC"]
[PlyCount "40"]
[EventDate "2018.05.19"]
[EventType "swiss"]
[EventCountry "GER"]
[SourceTitle "playchess.com"]
[Source "ChessBase"]
[SourceQuality "1"]
[TimeControl "40/4500+30:900+30"]

1. d4 {[%emt 0:00:00]} d5 {[%emt 0:00:15]} 2. c4 {[%emt 0:00:00]} e6 {[%emt 0:00:10]} 3. Nc3 {[%emt 0:00:00]} Nf6 {[%emt 0:00:09]} 4. Bg5 {[%emt 0:00:00]} Nbd7 {[%emt 0:00:14]} 5. cxd5 {[%emt 0:00:14]} exd5 {[%emt 0:00:09]} 6. e3 {[%emt 0:00:23]} c6 {[%emt 0:00:09]} 7. Bd3 {[%emt 0:00:15]} Be7 {[%emt 0:00:36]} 8. Qc2 {[%emt 0:00:33]} O-O {[%emt 0:00:51]} 9. Nge2 {[%emt 0:00:15]} Re8 {[%emt 0:00:59]} 10. O-O-O {[%emt 0:01:07]} Nf8 {[%emt 0:02:17]} 11. Kb1 {[%emt 0:01:01]} Bd7 {[%emt 0:04:10]} 12. Rdg1 {[%emt 0:01:45]} b5 {[%emt 0:01:10]} 13. h3 {[%emt 0:02:09]} a5 {[%emt 0:01:34]} 14. g4 {[%emt 0:01:02]} Ne4 {[%emt 0:05:44]} 15. Nxe4 {[%emt 0:02:43]} dxe4 {[%emt 0:00:48]} 16. Bxe4 {[%emt 0:05:10]} Bxg5 {[%emt 0:00:12]} 17. f4 {[%emt 0:00:09]} Bh4 {[%emt 0:01:04]} 18. g5 {[%emt 0:00:51]} Bf2 {[%emt 0:00:09]} 19. Rg2 {[%emt 0:01:01]} Bxe3 {[%emt 0:00:55]} 20. Qd3 {[%emt 0:00:11]} Qe7 {[%emt 0:00:17]} 0-1

[Event "GER-ch Youth U12M 2018"]
[Site "Willingen"]
[Date "2018.05.21"]
[Round "3"]
[White "Sieber, Bert"]
[Black "Hänselmann, Hendrik"]
[Result "1-0"]
[ECO "B22"]
[WhiteElo "1453"]
[BlackElo "1692"]
[Annotator "NA RC"]
[PlyCount "109"]
[EventDate "2018.05.19"]
[EventType "swiss"]
[EventCountry "GER"]
[SourceTitle "playchess.com"]
[Source "ChessBase"]
[SourceQuality "1"]
[TimeControl "40/4500+30:900+30"]

1. e4 {[%emt 0:00:00]} c5 {[%emt 0:00:07]} 2. c3 {[%emt 0:00:00]} e6 {[%emt 0:02:20]} 3. d4 {[%emt 0:00:56]} d5 {[%emt 0:01:49]} 4. exd5 {[%emt 0:01:34]} exd5 {[%emt 0:00:32]} 5. Bb5+ {[%emt 0:02:06]} Bd7 {[%emt 0:02:26]} 6. Bxd7+ {[%emt 0:02:06]} Nxd7 {[%emt 0:00:22]} 7. Nf3 {[%emt 0:01:06]} Ngf6 {[%emt 0:00:49]} 8. O-O {[%emt 0:00:50]} Be7 {[%emt 0:01:04]} 9. Be3 {[%emt 0:01:19]} O-O {[%emt 0:03:46]} 10. Nbd2 {[%emt 0:01:10]} Re8 {[%emt 0:02:09]} 11. Re1 {[%emt 0:02:07]} Qb6 {[%emt 0:05:26]} 12. Qc2 {[%emt 0:01:09]} cxd4 {[%emt 0:00:59]} 13. Nxd4 {[%emt 0:00:37]} Ne4 {[%emt 0:13:33]} 14. Rad1 {[%emt 0:05:22]} Nxd2 {[%emt 0:01:28]} 15. Qxd2 {[%emt 0:00:12]} Bc5 {[%emt 0:01:19]} 16. b4 {[%emt 0:05:08]} Bxd4 {[%emt 0:00:39]} 17. Bxd4 {[%emt 0:00:08]} Qg6 {[%emt 0:02:02]} 18. Re3 {[%emt 0:02:32]} Rxe3 {[%emt 0:04:28]} 19. Qxe3 {[%emt 0:00:11]} Nb6 {[%emt 0:02:52]} 20. Re1 {[%emt 0:01:33]} h6 {[%emt 0:01:09]} 21. Qe7 {[%emt 0:02:00]} Qc6 {[%emt 0:02:05]} 22. Qe5 {[%emt 0:01:47]} Qg6 {[%emt 0:01:35]} 23. h3 {[%emt 0:04:33]} Rc8 {[%emt 0:10:24]} 24. Bxb6 {[%emt 0:02:37]} Qxb6 {[%emt 0:00:14]} 25. Qxd5 {[%emt 0:00:15]} Qf6 {[%emt 0:04:34]} 26. Qxb7 {[%emt 0:03:47]} Qxc3 {[%emt 0:00:13]} 27. Re3 {[%emt 0:00:42]} Qc1+ {[%emt 0:01:32]} 28. Kh2 {[%emt 0:00:13]} Rc7 {[%emt 0:00:51]} 29. Re8+ {[%emt 0:00:21]} Kh7 {[%emt 0:00:24]} 30. Qe4+ {[%emt 0:00:20]} g6 {[%emt 0:00:41]} 31. Qe5 {[%emt 0:00:58]} f6 {[%emt 0:01:20]} 32. Qxf6 {[%emt 0:00:30]} Rg7 {[%emt 0:00:44]} 33. Re7 {[%emt 0:01:09]} Rxe7 {[%emt 0:00:21]} 34. Qxe7+ {[%emt 0:00:07]} Kg8 {[%emt 0:00:13]} 35. Qe6+ {[%emt 0:01:30]} Kg7 {[%emt 0:00:48]} 36. Qe5+ {[%emt 0:00:07]} Kg8 {[%emt 0:00:42]} 37. Qd5+ {[%emt 0:00:16]} Kg7 {[%emt 0:00:50]} 38. Qd4+ {[%emt 0:00:46]} Kg8 {[%emt 0:00:26]} 39. Qxa7 {[%emt 0:00:12]} Qf4+ {[%emt 0:00:13]} 40. g3 {[%emt 0:00:06]} Qxb4 {[%emt 0:15:08]} 41. a4 {[%emt 0:15:16]} h5 {[%emt 0:00:27]} 42. h4 {[%emt 0:01:18]} g5 {[%emt 0:00:45]} 43. hxg5 {[%emt 0:00:16]} h4 {[%emt 0:00:16]} 44. Qa8+ {[%emt 0:01:02]} Kg7 {[%emt 0:00:23]} 45. Qf3 {[%emt 0:00:29]} hxg3+ {[%emt 0:01:31]} 46. Kxg3 {[%emt 0:00:26]} Qxa4 {[%emt 0:00:13]} 47. g6 {[%emt 0:00:26]} Kxg6 {[%emt 0:00:36]} 48. Qg4+ {[%emt 0:00:06]} Qxg4+ 49. Kxg4 {[%emt 0:00:07]} Kf6 {[%emt 0:00:44]} 50. Kf4 {[%emt 0:00:05]} Kf7 {[%emt 0:00:21]} 51. Kf5 {[%emt 0:00:05]} Kf8 {[%emt 0:00:07]} 52. Kf6 {[%emt 0:00:05]} Kg8 {[%emt 0:00:29]} 53. f4 {[%emt 0:00:07]} Kh7 {[%emt 0:00:21]} 54. f5 {[%emt 0:00:05]} Kh6 {[%emt 0:00:20]} 55. Ke7 {[%emt 0:00:07]} 1-0

[Event "GER-ch Youth U12M 2018"]
[Site "Willingen"]
[Date "2018.05.21"]
[Round "3"]
[White "Gressler, Christian"]
[Black "Chassard, Cedric"]
[Result "1/2-1/2"]
[ECO "C00"]
[WhiteElo "1290"]
[BlackElo "1590"]
[Annotator "NA RC"]
[PlyCount "42"]
[EventDate "2018.05.19"]
[EventType "swiss"]
[EventCountry "GER"]
[SourceTitle "playchess.com"]
[Source "ChessBase"]
[SourceQuality "1"]
[TimeControl "40/4500+30:900+30"]

1. e4 {[%emt 0:00:00]} e6 {[%emt 0:00:06]} 2. d3 {[%emt 0:00:00]} d5 {[%emt 0:00:25]} 3. Nd2 {[%emt 0:00:00]} Nf6 {[%emt 0:03:54]} 4. Ngf3 {[%emt 0:00:25]} Be7 {[%emt 0:01:00]} 5. g3 {[%emt 0:00:09]} O-O {[%emt 0:02:05]} 6. Bg2 {[%emt 0:00:32]} c5 {[%emt 0:00:47]} 7. O-O {[%emt 0:00:11]} Nc6 {[%emt 0:00:25]} 8. e5 {[%emt 0:01:04]} Nd7 {[%emt 0:00:16]} 9. Re1 {[%emt 0:00:13]} Qc7 {[%emt 0:01:02]} 10. Qe2 {[%emt 0:00:09]} a5 {[%emt 0:09:48]} 11. Nf1 {[%emt 0:02:13]} b5 {[%emt 0:04:47]} 12. Bf4 {[%emt 0:00:49]} Ba6 {[%emt 0:03:11]} 13. h4 {[%emt 0:06:34]} c4 {[%emt 0:04:04]} 14. a3 {[%emt 0:10:30]} b4 {[%emt 0:06:24]} 15. Bg5 {[%emt 0:19:50]} Bxg5 {[%emt 0:04:27]} 16. hxg5 {[%emt 0:00:13]} b3 {[%emt 0:03:52]} 17. cxb3 {[%emt 0:03:33]} cxd3 {[%emt 0:00:08]} 18. Qe3 {[%emt 0:00:43]} Qb6 {[%emt 0:04:07]} 19. Qxb6 {[%emt 0:07:29]} Nxb6 {[%emt 0:00:02]} 20. Rac1 {[%emt 0:00:08]} Rfc8 {[%emt 0:00:38]} 21. N1d2 {[%emt 0:01:42]} Nd7 {[%emt 0:04:28] exd6} 1/2-1/2

[Event "GER-ch Youth U12M 2018"]
[Site "Willingen"]
[Date "2018.05.21"]
[Round "4"]
[White "Laux, Dominik"]
[Black "May, Ben-Iven"]
[Result "1-0"]
[ECO "D00"]
[WhiteElo "1889"]
[BlackElo "1769"]
[Annotator "NA"]
[PlyCount "47"]
[EventDate "2018.05.19"]
[EventType "swiss"]
[EventCountry "GER"]
[SourceTitle "playchess.com"]
[Source "ChessBase"]
[SourceQuality "1"]
[TimeControl "40/4500+30:900+30"]

1. d4 {[%emt 0:00:00]} d5 {[%emt 0:00:20]} 2. Bf4 {[%emt 0:00:19]} Nf6 {[%emt 0:00:29]} 3. e3 {[%emt 0:00:20]} e6 {[%emt 0:00:07]} 4. c3 {[%emt 0:00:46]} Be7 {[%emt 0:00:32]} 5. Nd2 {[%emt 0:00:18]} O-O {[%emt 0:00:43]} 6. Bd3 {[%emt 0:00:15]} c5 {[%emt 0:01:03]} 7. Ngf3 {[%emt 0:00:33]} Nc6 {[%emt 0:00:41]} 8. Ne5 {[%emt 0:01:26]} Nxe5 {[%emt 0:01:24]} 9. dxe5 {[%emt 0:01:22]} Nd7 {[%emt 0:00:43]} 10. h4 {[%emt 0:00:57]} Re8 {[%emt 0:01:18]} 11. Qh5 {[%emt 0:07:24]} g6 {[%emt 0:05:10]} 12. Qg4 {[%emt 0:01:53]} h5 {[%emt 0:04:51]} 13. Qg3 {[%emt 0:03:07]} Kg7 {[%emt 0:02:17]} 14. Nf3 {[%emt 0:02:43]} a6 {[%emt 0:11:07]} 15. Ng5 {[%emt 0:03:46]} Nf8 {[%emt 0:02:52]} 16. Nxf7 {[%emt 0:10:28]} Kxf7 {[%emt 0:03:41]} 17. Bh6 {[%emt 0:00:20]} g5 {[%emt 0:00:30]} 18. Qf3+ {[%emt 0:04:37]} Kg8 {[%emt 0:00:46]} 19. Qxh5 {[%emt 0:00:17]} d4 {[%emt 0:01:03]} 20. Bxf8 {[%emt 0:01:58]} Kxf8 {[%emt 0:00:22]} 21. Qh8+ {[%emt 0:00:23]} Kf7 {[%emt 0:00:26]} 22. Qh7+ {[%emt 0:00:02]} Kf8 {[%emt 0:00:14]} 23. Bg6 {[%emt 0:00:07]} dxe3 {[%emt 0:00:41]} 24. Qf7# 1-0

[Event "GER-ch Youth U12M 2018"]
[Site "Willingen"]
[Date "2018.05.21"]
[Round "4"]
[White "Tham, Nam"]
[Black "Bui, Bao Anh Le"]
[Result "1-0"]
[ECO "B90"]
[WhiteElo "1866"]
[BlackElo "1974"]
[Annotator "NA"]
[PlyCount "89"]
[EventDate "2018.05.19"]
[EventType "swiss"]
[EventCountry "GER"]
[SourceTitle "playchess.com"]
[Source "ChessBase"]
[SourceQuality "1"]
[TimeControl "40/4500+30:900+30"]

1. e4 {[%emt 0:00:00]} c5 {[%emt 0:00:20]} 2. Nf3 {[%emt 0:00:00]} d6 {[%emt 0:00:09]} 3. d4 {[%emt 0:00:00]} cxd4 {[%emt 0:00:03]} 4. Nxd4 {[%emt 0:00:00]} Nf6 {[%emt 0:00:05]} 5. Nc3 {[%emt 0:00:00]} a6 {[%emt 0:00:54]} 6. Be3 {[%emt 0:00:12]} e5 {[%emt 0:00:06]} 7. Nb3 {[%emt 0:00:06]} Be6 {[%emt 0:00:15]} 8. Be2 {[%emt 0:00:08]} Be7 {[%emt 0:00:36]} 9. O-O {[%emt 0:00:14]} O-O {[%emt 0:01:13]} 10. h3 {[%emt 0:01:39] B92: Sizilianisch (Najdorf-Variante mit 6.Le2)} (10. a4 Nbd7 11. Qd2 Rc8 12. a5 Re8 13. Bf3 h6 14. Nc1 Nh7 15. g3 Bg5 16. Nd3 Nb8 17. Bxg5 Qxg5 18. Qxg5 hxg5 19. Rfd1 Nc6 20. Ne2 g4 {0-1 (39) Zherebukh,Y (2633)-Xiong,J (2640) Saint Louis 2018}) 10... Nbd7 {[%emt 0:00:29]} 11. Qd2 {[%emt 0:00:14]} b5 {[%emt 0:04:34]} 12. Rad1 {[%emt 0:00:34]} Nb6 {[%emt 0:05:49]} 13. a3 {[%emt 0:02:12]} Qc7 $146 {[%emt 0:04:49]} ({Vorgänger:} 13... Nc4 14. Qc1 Nxe3 15. Qxe3 Qc7 16. Nd2 Rac8 {0-1 (29) Jimenez Gil,R (1795)-Esmeraldas Huachi,A Cali 2015}) 14. Rfe1 {[%emt 0:02:31]} Rab8 {[%emt 0:01:57]} 15. Bd3 {[%emt 0:01:10]} Nc4 {[%emt 0:01:08]} 16. Qc1 {[%emt 0:02:00]} Nxa3 {[%emt 0:05:48]} 17. bxa3 {[%emt 0:04:27]} Qxc3 {[%emt 0:00:27]} 18. Bd2 {[%emt 0:00:03]} Qc7 {[%emt 0:01:40]} 19. Qb2 {[%emt 0:00:25]} Nd7 {[%emt 0:02:18]} 20. Ra1 {[%emt 0:04:43]} Nc5 {[%emt 0:04:21]} 21. Nxc5 {[%emt 0:00:23]} dxc5 {[%emt 0:00:17]} 22. Bc3 {[%emt 0:00:40]} f6 {[%emt 0:00:52]} 23. Rab1 {[%emt 0:00:58]} Rfd8 {[%emt 0:01:32]} 24. Kh1 {[%emt 0:02:52]} c4 {[%emt 0:13:09]} 25. Be2 {[%emt 0:03:23]} a5 {[%emt 0:03:09]} 26. Red1 {[%emt 0:00:04]} b4 {[%emt 0:08:09]} 27. axb4 {[%emt 0:00:51]} axb4 {[%emt 0:00:13]} 28. Rxd8+ {[%emt 0:00:10]} Qxd8 {[%emt 0:00:45]} 29. Be1 {[%emt 0:00:06]} Bc5 {[%emt 0:09:17]} 30. Kg1 {[%emt 0:07:30]} Qb6 {[%emt 0:03:15]} 31. Qa2 {[%emt 0:02:30]} Qb5 {[%emt 0:04:28]} 32. Bf1 {[%emt 0:03:23]} Kf8 {[%emt 0:01:30]} 33. Bc3 {[%emt 0:04:32]} Qc6 {[%emt 0:01:26]} 34. Be1 {[%emt 0:02:38]} Ra8 {[%emt 0:02:58]} 35. Qb2 {[%emt 0:00:32]} c3 {[%emt 0:00:10]} 36. Qc1 {[%emt 0:00:01]} Qxe4 {[%emt 0:02:35]} 37. Bd3 {[%emt 0:00:05]} Qh4 {[%emt 0:01:12]} 38. Ra1 {[%emt 0:00:56]} Rd8 {[%emt 0:01:24]} 39. Ra5 {[%emt 0:01:09]} Qd4 {[%emt 0:00:50]} 40. Bxh7 {[%emt 0:02:16]} Bc4 {[%emt 0:15:26]} 41. Qa1 {[%emt 0:18:37]} Ke7 {[%emt 0:00:00]} 42. Qa4 $19 {[%emt 0:00:00]} Qd6 {[%emt 0:00:00]} 43. Bxc3 {[%emt 0:00:00]} Qb6 {[%emt 0:00:00]} 44. Rxc5 {[%emt 0:00:00]} Rd1+ {[%emt 0:02:08]} 45. Kh2 {[%emt 0:00:00]} 1-0

[Event "GER-ch Youth U12M 2018"]
[Site "Willingen"]
[Date "2018.05.21"]
[Round "4"]
[White "Eilenberg, Jonas"]
[Black "Foerster-Yialamas, Lucas"]
[Result "1/2-1/2"]
[ECO "A48"]
[WhiteElo "1852"]
[BlackElo "1924"]
[Annotator "NA"]
[PlyCount "77"]
[EventDate "2018.05.19"]
[EventType "swiss"]
[EventCountry "GER"]
[SourceTitle "playchess.com"]
[Source "ChessBase"]
[SourceQuality "1"]
[TimeControl "40/4500+30:900+30"]

1. d4 Nf6 2. Nf3 {[%emt 0:00:00]} g6 {[%emt 0:00:01]} 3. e3 {[%emt 0:00:00]} Bg7 {[%emt 0:00:18]} 4. Nbd2 {[%emt 0:00:15]} d6 {[%emt 0:00:05]} 5. Be2 {[%emt 0:00:45]} O-O {[%emt 0:00:15]} 6. b3 {[%emt 0:00:39]} Nfd7 {[%emt 0:01:37]} 7. Bb2 {[%emt 0:00:53]} e5 {[%emt 0:03:41]} 8. O-O {[%emt 0:02:11]} Re8 {[%emt 0:01:30]} 9. dxe5 {[%emt 0:03:48]} Nxe5 {[%emt 0:00:17]} 10. Nxe5 {[%emt 0:00:54]} dxe5 {[%emt 0:00:17]} 11. Nc4 {[%emt 0:00:57]} Nc6 {[%emt 0:01:57]} 12. Qxd8 {[%emt 0:03:09]} Rxd8 {[%emt 0:00:12]} 13. Bf3 {[%emt 0:01:52]} Be6 {[%emt 0:00:23]} 14. Bxc6 {[%emt 0:01:55]} Bxc4 {[%emt 0:00:11]} 15. Bxb7 {[%emt 0:01:42]} Rab8 {[%emt 0:00:16]} 16. bxc4 {[%emt 0:00:08]} Rxb7 {[%emt 0:00:04]} 17. Bc3 {[%emt 0:00:11]} e4 {[%emt 0:00:08]} 18. Bxg7 {[%emt 0:00:06]} Kxg7 {[%emt 0:00:05]} 19. Rab1 {[%emt 0:00:28]} Rxb1 {[%emt 0:00:58]} 20. Rxb1 {[%emt 0:00:06]} Rd2 {[%emt 0:00:08]} 21. Rc1 {[%emt 0:00:09]} Rd6 {[%emt 0:00:05]} 22. Kf1 {[%emt 0:00:46]} Rc6 {[%emt 0:00:09]} 23. Ke2 {[%emt 0:00:18]} Rxc4 {[%emt 0:00:05]} 24. Kd2 {[%emt 0:00:41]} Rc5 {[%emt 0:00:49]} 25. Rb1 {[%emt 0:03:39]} Rh5 {[%emt 0:00:39]} 26. h3 {[%emt 0:00:31]} Rg5 {[%emt 0:00:07]} 27. g3 {[%emt 0:00:15]} Rf5 {[%emt 0:00:21]} 28. Ke2 {[%emt 0:00:07]} Rc5 {[%emt 0:00:31]} 29. Kd2 {[%emt 0:00:07]} Rd5+ {[%emt 0:00:55]} 30. Ke2 {[%emt 0:00:10]} a5 {[%emt 0:00:52]} 31. Rb7 {[%emt 0:03:59]} Rc5 {[%emt 0:00:14]} 32. Rb2 {[%emt 0:00:01]} Rc4 {[%emt 0:00:21]} 33. Kd2 {[%emt 0:00:30]} Ra4 {[%emt 0:00:19]} 34. Kc3 {[%emt 0:01:21]} h5 {[%emt 0:03:18]} 35. Rb1 {[%emt 0:06:32]} Ra3+ {[%emt 0:04:34]} 36. Kc4 {[%emt 0:01:14]} Ra4+ {[%emt 0:00:45]} 37. Kc3 {[%emt 0:02:00]} Ra3+ 38. Kc4 a4 39. Kd4 1/2-1/2

[Event "GER-ch Youth U12M 2018"]
[Site "Willingen"]
[Date "2018.05.21"]
[Round "4"]
[White "Metzdorf, Matteo"]
[Black "Werner, Denis"]
[Result "1/2-1/2"]
[ECO "B24"]
[WhiteElo "1832"]
[BlackElo "1706"]
[Annotator "NA"]
[PlyCount "82"]
[EventDate "2018.05.19"]
[EventType "swiss"]
[EventCountry "GER"]
[SourceTitle "playchess.com"]
[Source "ChessBase"]
[SourceQuality "1"]
[TimeControl "40/4500+30:900+30"]

1. e4 {[%emt 0:00:00]} c5 {[%emt 0:00:11]} 2. Nc3 {[%emt 0:00:00]} Nc6 {[%emt 0:00:36]} 3. g3 {[%emt 0:00:07]} g6 {[%emt 0:00:41]} 4. Bg2 {[%emt 0:00:09]} Bg7 {[%emt 0:00:40]} 5. d3 {[%emt 0:00:09]} e6 {[%emt 0:00:52]} 6. Be3 {[%emt 0:00:16]} d6 {[%emt 0:01:05]} 7. Qd2 {[%emt 0:00:10]} Rb8 {[%emt 0:00:53]} 8. Nf3 {[%emt 0:01:25]} Nd4 {[%emt 0:00:55]} 9. Bxd4 {[%emt 0:00:10]} cxd4 {[%emt 0:01:19]} 10. Nb5 {[%emt 0:00:23]} Qb6 {[%emt 0:01:26]} 11. Qb4 {[%emt 0:00:43]} Bf8 {[%emt 0:01:48]} 12. Qxd4 {[%emt 0:07:27]} Qxd4 {[%emt 0:00:21]} 13. Nbxd4 {[%emt 0:00:23]} Bd7 {[%emt 0:00:36]} 14. O-O {[%emt 0:02:58]} Bg7 {[%emt 0:00:48]} 15. c3 {[%emt 0:01:19]} Ne7 {[%emt 0:00:48]} 16. Rfd1 {[%emt 0:07:14]} O-O {[%emt 0:01:25]} 17. Nc2 {[%emt 0:04:01]} d5 {[%emt 0:01:47]} 18. Ne3 {[%emt 0:04:47]} Bc6 {[%emt 0:01:26]} 19. exd5 {[%emt 0:06:49]} Nxd5 {[%emt 0:00:14]} 20. Nxd5 {[%emt 0:01:20]} Bxd5 {[%emt 0:00:20]} 21. d4 {[%emt 0:03:54]} Rfd8 {[%emt 0:01:52]} 22. Re1 {[%emt 0:11:45]} Bxf3 {[%emt 0:02:17]} 23. Bxf3 {[%emt 0:00:36]} Bh6 {[%emt 0:00:14]} 24. Rad1 {[%emt 0:07:23]} b6 {[%emt 0:00:58]} 25. Re2 {[%emt 0:04:31]} Rbc8 {[%emt 0:00:55]} 26. Ree1 {[%emt 0:06:59]} Rb8 {[%emt 0:02:14]} 27. d5 {[%emt 0:01:21]} exd5 {[%emt 0:00:38]} 28. Bxd5 {[%emt 0:01:11]} Re8 {[%emt 0:00:20]} 29. c4 {[%emt 0:01:26]} Bg7 {[%emt 0:00:36]} 30. b3 {[%emt 0:00:37]} Bc3 {[%emt 0:00:53]} 31. Re3 {[%emt 0:01:52]} Bb4 {[%emt 0:00:04]} 32. Rf3 {[%emt 0:01:51]} Re7 {[%emt 0:00:13]} 33. Kg2 Kg7 {[%emt 0:01:32]} 34. Bc6 {[%emt 0:04:09]} Rc8 {[%emt 0:01:05]} 35. Bb5 {[%emt 0:00:46]} Rcc7 {[%emt 0:03:22]} 36. Re3 {[%emt 0:01:46]} Bc5 {[%emt 0:00:10]} 37. Rxe7 {[%emt 0:00:52]} Rxe7 {[%emt 0:00:06]} 38. Rd7 {[%emt 0:01:22]} a5 {[%emt 0:01:43]} 39. Rxe7 {[%emt 0:01:37]} Bxe7 {[%emt 0:00:07]} 40. Kf3 {[%emt 0:00:26]} Bc5 {[%emt 0:15:09]} 41. Ke2 {[%emt 0:15:38]} Kf6 {[%emt 0:00:10]} 1/2-1/2